Workbook

Sheet Worksheet
B5: Before proceeding, if you see a security warning box at the top, click the "Enable Editing" button and then the "Enable Content" button in order for the spreadsheet to work properly.
B7: Section 1 | C7: Dental School & HPSP Scholarship Information
C9: School Information | F9: Civilian Route Scenario for Comparison | I9: Military Route Scenario for Comparison
C10: Graduation Year | D10: Dental Program Length (yrs) | E10: First Year Cost of Attendance | F10: 1 Year Civilian AEGD or GPR? | G10: Civ Residency Stipend (per yr) | H10: Total Yrs as Civilian Dentist Not Counting Residency | I10: HPSP Scholarship Length (yrs) | J10: 1 Year Military AEGD or GPR? | K10: Total Years in Military
C11: 2025 | D11: 4 | E11: 70000 | F11: N | G11: 40000 | H11: =K11-IF(F11="Y",1,0) -> 4 | I11: 4 | J11: N | K11: =IF(I11=2,3,I11)+IF(J11="Y",1,0) -> 4
D12: =IF(I11>D11,"Uh oh, make sure your scholarship length doesn't exceed your program length.","") -> 
B15: Section 2 | C15: Federal Loan Information
C17: Average # Days per Month | D17: Cost of Attendance Annual Inflation | E17: 12-Month Direct Loan Limit | F17: 9-Month Direct Loan Limit | G17: Direct Loan Aggregate Limit | H17: Direct Loan Interest Rate | I17: Direct PLUS Loan Interest Rate | J17: Refinance upon Graduation? | K17: Refinanced Interest Rate
C18: =AVERAGE(31,28,31,30,31,30,31,31,30,31,30,31) -> 30.41666667 | D18: 0.04 | E18: 47167 | F18: 45000 | G18: 224000 | H18: 0.043 | I18: 0.053 | J18: Y | K18: 0.03
B22: Section 3 | C22: Cost to Fund Dental School Through Federal Loans
C24: Year | D24: Cost of Attendance | E24: Direct Loan | F24: Direct PLUS Loan | G24: Total + Interest After Year 1 | H24: Total + Interest After Year 2 | I24: Total + Interest After Year 3 | J24: Total + Interest After Year 4 | K24: TOTAL DEBT AT GRADUATION
C25: 1 | D25: =E11 -> 70000 | E25: =IF(D25>IF(D11=4,F18,$E$18),IF(D11=4,F18,$E$18),D25) -> 45000 | F25: =D25-E25 -> 25000 | G25: =$E25+$F25+IF($D$11=3,E25/4*2.5*DLint,E25/3*1.5*DLint)+IF($D$11=3,F25/4*2.5*PLUSint,F25/3*1.5*PLUSint) -> 71630 | H25: =G25+$E25*DLint+$F25*PLUSint -> 74890 | I25: =H25+$E25*DLint+$F25*PLUSint -> 78150 | J25: =IF($D$11=4,I25+$E25*DLint+$F25*PLUSint,0) -> 81410 | K25: =IF(D11=4,SUM(J25:J28),SUM(I25:I27)) -> 325620.3631
C26: 2 | D26: =D25*(1+Inf) -> 72800 | E26: =IF(D26>$E$18,$E$18,D26) -> 47167 | F26: =D26-E26 -> 25633 | H26: =$E26+$F26+E26/4*2.5*DLint+F26/4*2.5*PLUSint -> 74916.70625 | I26: =H26+$E26*DLint+$F26*PLUSint -> 78303.43625 | J26: =IF($D$11=4,I26+$E26*DLint+$F26*PLUSint,0) -> 81690.16625 | K26: Total Cost of Attendance Before Interest
C27: 3 | D27: =D26*(1+Inf) -> 75712 | E27: =IF(D27>$E$18,$E$18,D27) -> 47167 | F27: =D27-E27 -> 28545 | I27: =$E27+$F27+E27/4*2.5*DLint+F27/4*2.5*PLUSint -> 77925.16625 | J27: =IF($D$11=4,I27+$E27*DLint+$F27*PLUSint,0) -> 81466.23225
C28: 4 | D28: =IF(D11=4,D27*(1+Inf),0) -> 78740.48 | E28: =IF(D28>$E$18,IF(SUM(E25:E27)<G18,$E$18,D28),D28) -> 47167 | F28: =D28-E28 -> 31573.48 | J28: =$E28+$F28+E28/4*2.5*DLint+F28/4*2.5*PLUSint -> 81053.96465 | K28: =SUM(D25:D28) -> 297252.48
C30: =_xlfn.CONCAT("Assumption: Begin Loan Repayment After ",IF(F11="Y","Civilian AEGD Residency","Dental School"),", Finish Repayment in ",H11," Years (Total of ",K11," Years After Graduating from Dental School)" ) -> Assumption: Begin Loan Repayment After Dental School, Finish Repayment in 4 Years (Total of 4 Years After Graduating from Dental School)
D32: Y1 Principle + Capitalized Int | E32: Y2 Principle + Capitalized Int | F32: Y3 Principle + Capitalized Int | G32: Y4 Principle + Capitalized Int | H32: Total Loan Amount for Repayment | I32: Average Monthly Loan Payment | J32: Sum of Monthly Loan Payments | K32: FINAL AMOUNT PAID
C33: Direct Loans | D33: =E25*(1+DLint*($D$11-$C25+IF(F11="Y",1,0)))+IF($D$11=3,E25/4*2.5*DLint,E25/3*1.5*DLint) -> 51772.5 | E33: =$E26*(1+DLint*(D11-C26+IF(F11="Y",1,0)))+E26/4*2.5*DLint -> 52490.97512 | F33: =$E27*(1+DLint*(D11-C27+IF(F11="Y",1,0)))+E27/4*2.5*DLint -> 50462.79413 | G33: =$E28+E28/4*2.5*DLint+(D11-4+IF(F11="Y",1,0))*$E28*DLint -> 48434.61313 | H33: =IF($D$11=4,SUM(D33:G33),SUM(D33:F33)) -> 203160.8824 | I33: =PMT(IF($J$18="N",DLint,$K$18)/365,$H$11*365,-H33)*$C$18 -> 4491.721017 | J33: =I33*12*$H$11 -> 215602.6088 | K33: =SUM(J32:J34) -> 345561.6011
C34: PLUS Loans | D34: =$F25*(1+PLUSint*(D11-C25+IF(F11="Y",1,0)))+IF($D$11=3,F25/4*2.5*PLUSint,F25/3*1.5*PLUSint) -> 29637.5 | E34: =$F26*(1+PLUSint*(D11-C26+IF(F11="Y",1,0)))+F26/4*2.5*PLUSint -> 29199.19113 | F34: =$F27*(1+PLUSint*(D11-C27+IF(F11="Y",1,0)))+F27/4*2.5*PLUSint -> 31003.43812 | G34: =$F28*(1+PLUSint*(D11-C28+IF(F11="Y",1,0)))+F28/4*2.5*PLUSint -> 32619.35152 | H34: =IF($D$11=4,SUM(D34:G34),SUM(D34:F34)) -> 122459.4808 | I34: =PMT(IF($J$18="N",PLUSint,$K$18)/365,$H$11*365,-H34)*$C$18 -> 2707.479005 | J34: =I34*12*$H$11 -> 129958.9922 | K34: TOTAL INTEREST PAID
C35: TOTAL | D35: =SUM(D33:D34) -> 81410 | E35: =SUM(E33:E34) -> 81690.16625 | F35: =SUM(F33:F34) -> 81466.23225 | G35: =SUM(G33:G34) -> 81053.96465 | H35: =SUM(D35:G35) -> 325620.3631 | I35: =SUM(I33:I34) -> 7199.200022 | J35: =SUM(J33:J34) -> 345561.6011 | K35: =K33-SUM(D25:D28) -> 48309.12106
B39: Section 4 | C39: Cost to Fund Dental School Through HPSP Scholarship
C41: Year | D41: Cost of Attendance | E41: Additional Loans Needed | F41: Direct Loan | G41: Direct PLUS Loan | H41: Total + Interest After Year 1 | I41: Total + Interest After Year 2 | J41: Total + Interest After Year 3 | K41: Total + Interest After Year 4
C42: 1 | D42: =IF(OR(AND($I$11<>4,D11=4),AND($D$11=3,$I$11=2)),COA*(1+Inf)^(C42-1),0) -> 0 | E42: 0 | F42: =IF(IF(D42<>0,D42,E42)>IF(D11=3,$E$18,40500),IF(D11=3,$E$18,40500),IF(D42<>0,D42,E42)) -> 0 | G42: =IF(D42<>0,D42,E42)-F42 -> 0 | H42: =$F42+$G42+IF($D$11=3,F42/4*2.5*DLint,F42/3*1.5*DLint)+IF($D$11=3,G42/4*2.5*PLUSint,G42/3*1.5*PLUSint) -> 0 | I42: =H42+$F42*DLint+$G42*PLUSint -> 0 | J42: =I42+$F42*DLint+$G42*PLUSint -> 0 | K42: =IF($D$11=4,J42+$F42*DLint+$G42*PLUSint,0) -> 0
C43: 2 | D43: =IF(AND($I$11=2,$D$11=4),COA*(1+Inf)^(C43-1),0) -> 0 | E43: 0 | F43: =IF(IF(D43<>0,D43,E43)>$E$18,$E$18,IF(D43<>0,D43,E43)) -> 0 | G43: =IF(D43<>0,D43,E43)-F43 -> 0 | I43: =$F43+$G43+F43/4*2.5*DLint+G43/4*2.5*PLUSint -> 0 | J43: =I43+$F43*DLint+$G43*PLUSint -> 0 | K43: =IF($D$11=4,J43+$F43*DLint+$G43*PLUSint,0) -> 0
C44: 3 | D44: 0 | E44: 0 | F44: =IF(IF(D44<>0,D44,E44)>$E$18,$E$18,IF(D44<>0,D44,E44)) -> 0 | G44: =IF(D44<>0,D44,E44)-F44 -> 0 | J44: =$F44+$G44+F44/4*2.5*DLint+G44/4*2.5*PLUSint -> 0 | K44: =IF($D$11=4,J44+$F44*DLint+$G44*PLUSint,0) -> 0
C45: 4 | D45: 0 | E45: 0 | F45: =IF(D11=4,IF(IF(D45<>0,D45,E45)>$E$18,$E$18,IF(D45<>0,D45,E45)),0) -> 0 | G45: =IF(D11=4,IF(D45<>0,D45,E45)-F45,0) -> 0 | K45: =$F45+$G45+F45/4*2.5*DLint+G45/4*2.5*PLUSint -> 0
E46: =IF(OR(AND(E42>0,D42>0),AND(E43>0,D43>0),AND(E44>0,D44>0),AND(E45>0,D45>0)),"Remember, you cannot take out additional loan once your COA has been met.","") ->  | K46: TOTAL DEBT AT GRADUATION
K47: =IF(D11=3,SUM(J42:J44),SUM(K42:K45)) -> 0
C49: =_xlfn.CONCAT("Assumption: Begin Loan Repayment After Dental School, Finish Repayment in ",K11," Years.") -> Assumption: Begin Loan Repayment After Dental School, Finish Repayment in 4 Years.
D51: Y1 Principle + Capitalized Int | E51: Y2 Principle + Capitalized Int | F51: Y3 Principle + Capitalized Int | G51: Y4 Principle + Capitalized Int | H51: Total Amount for Repayment | I51: Average Monthly Payment | J51: Sum of Monthly Payments | K51: FINAL AMOUNT PAID
C52: Direct Loans | D52: =F42*(1+DLint*($D$11-$C42))+IF($D$11=3,F42/4*2.5*DLint,F42/3*1.5*DLint) -> 0 | E52: =F43*(1+DLint*($D$11-$C43))+F43/4*2.5*DLint -> 0 | F52: =F44*(1+DLint*($D$11-$C44))+F44/4*2.5*DLint -> 0 | G52: =F45*(1+DLint*($D$11-$C45))+F45/4*2.5*DLint -> 0 | H52: =IF($D$11=4,SUM(D52:G52),SUM(D52:F52)) -> 0 | I52: =PMT(IF($J$18="N",DLint,$K$18)/365,(K11)*365,-H52)*$C$18 -> 0 | J52: =I52*12*(K11) -> 0 | K52: =SUM(J51:J53) -> 0
C53: PLUS Loans | D53: =G42*(1+PLUSint*($D$11-$C42))+IF($D$11=3,G42/4*2.5*PLUSint,G42/3*1.5*PLUSint) -> 0 | E53: =G43*(1+PLUSint*($D$11-$C43))+G43/4*2.5*PLUSint -> 0 | F53: =G44*(1+PLUSint*($D$11-$C44))+G44/4*2.5*PLUSint -> 0 | G53: =G45*(1+PLUSint*($D$11-$C45))+G45/4*2.5*PLUSint -> 0 | H53: =IF($D$11=4,SUM(D53:G53),SUM(D53:F53)) -> 0 | I53: =PMT(IF($J$18="N",PLUSint,$K$18)/365,(K11)*365,-H53)*$C$18 -> 0 | J53: =I53*12*K11 -> 0 | K53: TOTAL INTEREST PAID
C54: TOTAL | D54: =SUM(D52:D53) -> 0 | E54: 0 | F54: 0 | G54: 0 | H54: 0 | I54: 0 | J54: 0 | K54: =K52-SUM(F42:G45) -> 0
C56: Pay Data Source Year | D56: Signing Bonus | E56: Annual BAH & BAS Allowance | F56: Avg. Annual Pay Increase | G56: Yearly Incentive Pay + Benefits | H56: =_xlfn.CONCAT("Yearly Base Pay for O3 Paygrade (Current for ",C57,")") -> Yearly Base Pay for O3 Paygrade (Current for 2021) | J56: Military Payback Year | K56: Projected Gross Income During Military Payback
C57: 2021 | D57: 20000 | E57: =2096*12+254.39*12 -> 28204.68 | F57: 0.02 | G57: 30000 | H57: Year 1 Salary | I57: 54176.4 | J57: Residency Year | K57: =IF($J$11="Y",($I$57+$E$57)*(1+$F$57)^($C$11-$C$57)+$G$57,0) -> 0
H58: Year 2 Salary | I58: 54176.4 | J58: Active Duty Y1 | K58: =(OFFSET($I$57,COUNTIF($K$57:K57,"<>0"),0)+$E$57)*(1+$F$57)^($C$11-$C$57+COUNTIF($K$57:K57,"<>0"))+$G$57 -> 119171.9304
H59: Year 3 Salary | I59: 61412.4 | J59: Active Duty Y2 | K59: =(OFFSET($I$57,COUNTIF($K$57:K58,"<>0"),0)+$E$57)*(1+$F$57)^($C$11-$C$57+COUNTIF($K$57:K58,"<>0"))+$G$57 -> 120955.369
H60: Year 4 Salary | I60: 66279.6 | J60: Active Duty Y3 | K60: =(OFFSET($I$57,COUNTIF($K$57:K59,"<>0"),0)+$E$57)*(1+$F$57)^($C$11-$C$57+COUNTIF($K$57:K59,"<>0"))+$G$57 -> 130923.3876
H61: Year 5 Salary | I61: 72273.6 | J61: Active Duty Y4 | K61: =IF(OR($I$11=4,$J$11=4),(OFFSET($I$57,COUNTIF($K$57:K60,"<>0"),0)+$E$57)*(1+$F$57)^($C$11-$C$57+COUNTIF($K$57:K60,"<>0"))+$G$57,0) -> 138532.7383
J62: TOTAL INCOME | K62: =SUM(K57:K61)+D57 -> 529583.4252
B66: Final Results | C66: =_xlfn.CONCAT(K11," Year Comparison") -> 4 Year Comparison
J67: FINAL COMPARISON
C68: Expected Civilian Annual Gross Income | F68: Average Military Annual Expendable Income After Debt Repayments | H68: Average Civilian Annual Expendable Income After Debt Repayments | J68: =_xlfn.CONCAT("HPSP ",IF(J69<0,"Disa","A"),"dvantage") -> HPSP Disadvantage
C69: 218828.0432 | F69: =K62/COUNTIF(K57:K61,"<>0")-I54*12 -> 132395.8563 | H69: =ROUND((C69*H11+G11*IF(F11="Y",1,0)-I35*12*H11)/(H11+IF(F11="Y",1,0)),2) -> 132437.64 | J69: =ROUND(K62-K52-(C69*H11-K33)-G11*IF(F11="Y",1,0),2) -> -167.15
C71: Summary Statements
C73: 218828.04 | E73: *Statements may not be accurate. Please update.
C75: =_xlfn.CONCAT("1. An average annual civilian income of ",TEXT(C69,"$#,##0.00_);($#,##0.00)"),"would allow you to pay off your student loans in ",H11," years and have an average annual expendable income of ",TEXT(H69,"$#,##0.00;($#,##0.00)"),". At the end of those ",H11," years, you will have earned ",IF(ROUND(J69,2)=0,"the same as",_xlfn.CONCAT("a total of ",TEXT(J69,"$#,##0.00;$#,##0.00"),IF(J69<0," more"," less")," than")), " what you would have earned if you had chosen to be a military dentist. Under this scenario, it would be ",IF(ROUND(J69,2)=0,"EQUALLY",IF(ROUND(J69,2)>0,"MORE","LESS"))," advantageous to take the HPSP route from a financial standpoint. If you selected yes for a civilian residency, then this would be the income you would need to earn in the years after your residency is completed until the end of the comparison time frame.") -> 1. An average annual civilian income of $218,828.04 would allow you to pay off your student loans in 4 years and have an average annual expendable income of $132,437.64. At the end of those 4 years, you will have earned a total of $167.15 more than what you would have earned if you had chosen to be a military dentist. Under this scenario, it would be LESS advantageous to take the HPSP route from a financial standpoint. If you selected yes for a civilian residency, then this would be the income you would need to earn in the years after your residency is completed until the end of the comparison time frame.
C80: =_xlfn.CONCAT("2. In order to pay off your student loans in ",H11," years and have the same annual expendable income as a military dentist during that time (", TEXT(F69,"$#,##0.00;($#,##0.00)"), "), you would need to have an average annual gross income of ",TEXT(C73,"$#,##0.00_);($#,##0.00)"),"per year as a civilian dentist.") -> 2. In order to pay off your student loans in 4 years and have the same annual expendable income as a military dentist during that time ($132,395.86), you would need to have an average annual gross income of $218,828.04 per year as a civilian dentist.
C83: =_xlfn.CONCAT("3. An average income of LESS than ",TEXT(C73,"$#,##0.00_);($#,##0.00)"),"as a civilian dentist throughout these ",H11," years would make the HPSP route more advantageous from a financial standpoint, while an average income MORE than this amount would favor the civilian route.") -> 3. An average income of LESS than $218,828.04 as a civilian dentist throughout these 4 years would make the HPSP route more advantageous from a financial standpoint, while an average income MORE than this amount would favor the civilian route.
C88: Sources:
C89: 1 | D89: https://www.chronicle.com/interactives/tuition-and-fees
C90: 2 | D90: https://u.osu.edu/dentistryfinaid/federal-loans/
C91: 3 | D91: https://studentaid.ed.gov/sa/types/loans/interest-rates
C92: 4 | D92: https://www.dfas.mil/militarymembers/payentitlements/Pay-Tables/Basic-Pay/CO/
C93: 5 | D93: https://www.dfas.mil/Portals/98/Documents/militarymembers/militarymembers/pay-tables/2021%20MilPay%20General.pdf?ver=MkfmQyc245XzKP414-iRVA%3d%3d
C94: 6 | D94: https://www.federalpay.org/military/raises
C95: 7 | D95: https://www.defensetravel.dod.mil/site/bahCalc.cfm
C96: 8 | D96: https://militarypay.defense.gov/PAY/ALLOWANCES/bas.aspx
C97: 9 | D97: https://militarypay.defense.gov/Pay/Special-and-Incentive-Pays/Index/
C98: 10 | D98: https://forums.studentdoctor.net/threads/what-does-an-hpsp-air-force-dentist-make-annually.1087211/
C99: 11 | D99: https://www.marquette.edu/dentistry/admissions/advanced-education-general-dentistry.php
C101: Assumptions:
C102: 1 | D102: Comparison is only valid for general dentists with or without 1 yr residency.
C103: 2 | D103: 4-year programs get the first summer off. 3-year programs go for 3 years without any quarter breaks.
C104: 3 | D104: Direct Loan and Direct PLUS Loan interest rates stay the same for each year of dental school.
C105: 4 | D105: The monthly stipend received during dental school is not viewed as income as this is already accounted for when assuming the military student is debt free.
C106: 5 | D106: Equal quarterly loan disbursements.
C107: 6 | D107: Civilian loan repayment coincides with military commitment completion for comparison purposes.
C108: 7 | D108: No loan payments during school or civilian residency.

Sheet Heat Table
A1: Federal Loans vs. HPSP Scholarship
C2: Estimated Annual Cost of Attendance
C3: 60000 | D3: 70000 | E3: 80000 | F3: 90000 | G3: 100000 | H3: 110000 | I3: 120000 | J3: 130000 | K3: 140000
A4: Civilian Dentist - Estimated Annual Salary | B4: 100000 | C4: 425358.85 | D4: 475312.17 | E4: 525265.49 | F4: 575218.82 | G4: 625172.14 | H4: 675125.46 | I4: 725078.79 | J4: 775032.11 | K4: 824985.43
B5: 115000 | C5: 365358.85 | D5: 415312.17 | E5: 465265.49 | F5: 515218.82 | G5: 565172.14 | H5: 615125.46 | I5: 665078.79 | J5: 715032.11 | K5: 764985.43
B6: 130000 | C6: 305358.85 | D6: 355312.17 | E6: 405265.49 | F6: 455218.82 | G6: 505172.14 | H6: 555125.46 | I6: 605078.79 | J6: 655032.11 | K6: 704985.43
B7: 145000 | C7: 245358.85 | D7: 295312.17 | E7: 345265.49 | F7: 395218.82 | G7: 445172.14 | H7: 495125.46 | I7: 545078.79 | J7: 595032.11 | K7: 644985.43
B8: 160000 | C8: 185358.85 | D8: 235312.17 | E8: 285265.49 | F8: 335218.82 | G8: 385172.14 | H8: 435125.46 | I8: 485078.79 | J8: 535032.11 | K8: 584985.43
B9: 175000 | C9: 125358.85 | D9: 175312.17 | E9: 225265.49 | F9: 275218.82 | G9: 325172.14 | H9: 375125.46 | I9: 425078.79 | J9: 475032.11 | K9: 524985.43
B10: 190000 | C10: 65358.85 | D10: 115312.17 | E10: 165265.49 | F10: 215218.82 | G10: 265172.14 | H10: 315125.46 | I10: 365078.79 | J10: 415032.11 | K10: 464985.43
B11: 205000 | C11: 5358.85 | D11: 55312.17 | E11: 105265.49 | F11: 155218.82 | G11: 205172.14 | H11: 255125.46 | I11: 305078.79 | J11: 355032.11 | K11: 404985.43
B12: 220000 | C12: -54641.15 | D12: -4687.83 | E12: 45265.49 | F12: 95218.82 | G12: 145172.14 | H12: 195125.46 | I12: 245078.79 | J12: 295032.11 | K12: 344985.43
B13: 235000 | C13: -114641.15 | D13: -64687.83 | E13: -14734.51 | F13: 35218.82 | G13: 85172.14 | H13: 135125.46 | I13: 185078.79 | J13: 235032.11 | K13: 284985.43
B14: 250000 | C14: -174641.15 | D14: -124687.83 | E14: -74734.51 | F14: -24781.18 | G14: 25172.14 | H14: 75125.46 | I14: 125078.79 | J14: 175032.11 | K14: 224985.43
B15: 265000 | C15: -234641.15 | D15: -184687.83 | E15: -134734.51 | F15: -84781.18 | G15: -34827.86 | H15: 15125.46 | I15: 65078.79 | J15: 115032.11 | K15: 164985.43
B16: 280000 | C16: -294641.15 | D16: -244687.83 | E16: -194734.51 | F16: -144781.18 | G16: -94827.86 | H16: -44874.54 | I16: 5078.79 | J16: 55032.11 | K16: 104985.43
B17: 295000 | C17: -354641.15 | D17: -304687.83 | E17: -254734.51 | F17: -204781.18 | G17: -154827.86 | H17: -104874.54 | I17: -54921.21 | J17: -4967.89 | K17: 44985.43 | L17: (Calculation may take a few moments)
B18: 310000 | C18: -414641.15 | D18: -364687.83 | E18: -314734.51 | F18: -264781.18 | G18: -214827.86 | H18: -164874.54 | I18: -114921.21 | J18: -64967.89 | K18: -15014.57
B19: 325000 | C19: -474641.15 | D19: -424687.83 | E19: -374734.51 | F19: -324781.18 | G19: -274827.86 | H19: -224874.54 | I19: -174921.21 | J19: -124967.89 | K19: -75014.57
B20: 340000 | C20: -534641.15 | D20: -484687.83 | E20: -434734.51 | F20: -384781.18 | G20: -334827.86 | H20: -284874.54 | I20: -234921.21 | J20: -184967.89 | K20: -135014.57
B21: 355000 | C21: -594641.15 | D21: -544687.83 | E21: -494734.51 | F21: -444781.18 | G21: -394827.86 | H21: -344874.54 | I21: -294921.21 | J21: -244967.89 | K21: -195014.57
B22: 370000 | C22: -654641.15 | D22: -604687.83 | E22: -554734.51 | F22: -504781.18 | G22: -454827.86 | H22: -404874.54 | I22: -354921.21 | J22: -304967.89 | K22: -255014.57
B23: 385000 | C23: -714641.15 | D23: -664687.83 | E23: -614734.51 | F23: -564781.18 | G23: -514827.86 | H23: -464874.54 | I23: -414921.21 | J23: -364967.89 | K23: -315014.57
B24: 400000 | C24: -774641.15 | D24: -724687.83 | E24: -674734.51 | F24: -624781.18 | G24: -574827.86 | H24: -524874.54 | I24: -474921.21 | J24: -424967.89 | K24: -375014.57
B25: 415000 | C25: -834641.15 | D25: -784687.83 | E25: -734734.51 | F25: -684781.18 | G25: -634827.86 | H25: -584874.54 | I25: -534921.21 | J25: -484967.89 | K25: -435014.57
B26: 430000 | C26: -894641.15 | D26: -844687.83 | E26: -794734.51 | F26: -744781.18 | G26: -694827.86 | H26: -644874.54 | I26: -594921.21 | J26: -544967.89 | K26: -495014.57
A27: Values represent the net financial gain for the scenario inputted in the financial comparison spreadsheet.
A29: Green and Yellow Positive Values = HPSP Scholarship Route Favored
A30: (Value shown is the net gain you would receive as a military dentist compared to going the Federal Loan route)
E31: Red and Yellow Negative Values = Federal Loan Route Favored
A32: (Value shown is the net gain you would receive as a civilian dentist compared to going the HPSP Scholarship route)
A34: (The user may add, remove, or change cells in the x and y axes)
